fUST/lending_fUST_20241130
["ID","MTS","AMOUNT","RATE_DAILY","PERIOD"]
[343853577,1732975838474,-500.0,0.00021778,2]
[343853578,1732975838483,-500.0,0.00021778,2]
[343853579,1732975838493,-500.0,0.00021778,2]
[343853580,1732975838503,-500.0,0.00021778,2]
[343853581,1732975838512,-500.0,0.00021778,2]
[343853582,1732975838521,-500.0,0.00021778,2]
[343853583,1732975838530,-500.0,0.00021778,2]
[343853584,1732975838540,-500.0,0.00021778,2]
[343853585,1732975838548,-500.0,0.00021778,2]
[343853586,1732975838558,-232.13913599,0.00021778,2]
[343853587,1732975838567,-500.0,0.00021778,2]
[343853588,1732975838576,-500.0,0.00021778,2]
[343853589,1732975838585,-500.0,0.00021778,2]
[343853590,1732975838594,-242.15222655,0.00021778,2]
[343853591,1732975838604,-500.0,0.00021778,2]
[343853592,1732975838613,-500.0,0.00021778,2]
[343853593,1732975838622,-500.0,0.00021778,2]
[343853594,1732975838631,-500.0,0.00021778,2]
[343853595,1732975838641,-175.95449823,0.00021778,2]
[343853596,1732975838650,-229.2534533,0.00021778,2]
[343853597,1732975838659,-500.0,0.00021778,2]
[343853598,1732975838669,-500.0,0.00021778,2]
[343853599,1732975838678,-500.0,0.00021778,2]
[343853600,1732975838688,-500.0,0.00021778,2]
[343853601,1732975838698,-500.0,0.00021778,2]
[343853602,1732975838708,-500.0,0.00021778,2]
[343853603,1732975838718,-500.0,0.00021778,2]
[343853604,1732975838729,-500.0,0.00021778,2]
[343853605,1732975838739,-470.45291543,0.00021778,2]
[343853606,1732975838750,-362.41609932,0.00021778,2]
[343853607,1732975838759,-500.0,0.00021778,2]
[343853608,1732975838769,-500.0,0.00021778,2]
[343853609,1732975838778,-500.0,0.00021778,2]
[343853610,1732975838787,-500.0,0.00021778,2]
[343853611,1732975838797,-500.0,0.00021778,2]
[343853612,1732975838806,-500.0,0.00021778,2]
[343853613,1732975838815,-500.0,0.00021778,2]
[343853614,1732975838824,-500.0,0.00021778,2]
[343853615,1732975838833,-500.0,0.00021778,2]
[343853616,1732975838843,-500.0,0.00021778,2]
[343853617,1732975838852,-500.0,0.00021778,2]
[343853618,1732975838862,-500.0,0.00021778,2]
[343853619,1732975838871,-500.0,0.00021778,2]
[343853620,1732975838882,-500.0,0.00021778,2]
[343853621,1732975838893,-500.0,0.00021778,2]
[343853622,1732975838902,-500.0,0.00021778,2]
[343853623,1732975838912,-500.0,0.00021778,2]
[343853624,1732975838921,-500.0,0.00021778,2]
[343853625,1732975838931,-500.0,0.00021778,2]
[343853626,1732975838940,-500.0,0.00021778,2]
[343853627,1732975838950,-500.0,0.00021778,2]
[343853628,1732975838960,-8580.2140748,0.00021786,2]
[343853629,1732975838968,-377.25853918,0.000219,2]
[343853630,1732975838977,-162.0,0.00022,2]
[343853631,1732975838986,-8580.2140748,0.00022052,2]
[343853632,1732975838997,-1000.0,0.00022073,2]
[343853633,1732975839005,-187.467403,0.00022141,2]
[343853634,1732975839014,-150.0,0.00022146,2]
[343853635,1732975839024,-8580.2140748,0.00022212,2]
[343853636,1732975839033,-153.0,0.00022282,2]
[343853637,1732975839042,-153.0,0.00022282,2]
[343853638,1732975839051,-152.39915339,0.00022304,2]
[343853639,1732975839061,-420.0,0.00022465,2]
[343853640,1732975839070,-187.467403,0.00022554,2]
[343853641,1732975839079,-212.993885,0.00022575,2]
[343853642,1732975839089,-212.993885,0.00022575,2]
[343853643,1732975839098,-8580.21407482,0.00022652,2]
[343853644,1732975839108,-420.0,0.00022709,2]
[343853645,1732975839117,-1356.57853317,0.00022728,2]
[343853646,1732975839126,-171.575,0.00022873,2]
[343853647,1732975839135,-34017.56427223,0.000229,2]
[343853648,1732975839152,-17971.99999997,0.000229,2]
[343853655,1732975840149,-932.30267476,0.000228,2]
[343853660,1732975843236,-475.54772186,0.000228,2]
[343853661,1732975843249,-1407.85039661,0.00022825,2]
[343853663,1732975843259,-63519.14161363,0.000229,2]
[343853665,1732975843343,-18387.49615774,0.000229,2]
[343853666,1732975843354,-151.0,0.000229,8]
[343853667,1732975843363,-151.0,0.000229,5]
[343853669,1732975843374,-300.224466,0.000229,8]
[343853671,1732975843383,-2091.53739456,0.000229,2]
[343853672,1732975843393,-173.26,0.000229,7]
[343853674,1732975843403,-259.9,0.000229,7]
[343853676,1732975843412,-187.467403,0.00022968,2]
[343853678,1732975843422,-500.0,0.00022973,2]
[343853679,1732975843432,-500.0,0.00022973,2]
[343853680,1732975843441,-500.0,0.00022973,2]
[343853681,1732975843451,-500.0,0.00022973,2]
[343853682,1732975843460,-500.0,0.00022973,2]
[343853683,1732975843470,-516.01644041,0.00022973,2]
[343853684,1732975843479,-500.0,0.00022973,2]
[343853685,1732975843488,-500.0,0.00022973,2]
[343853686,1732975843502,-500.0,0.00022973,2]
[343853687,1732975843512,-151.09457193,0.00022973,2]
[343853688,1732975843522,-500.0,0.00022973,2]
[343853689,1732975843531,-500.2987877,0.00022973,2]
[343853690,1732975843541,-500.0,0.00022973,2]
[343853691,1732975843551,-500.0,0.00022973,2]
[343853692,1732975843561,-500.0,0.00022973,2]
[343853693,1732975843570,-18472.43263911,0.00023,2]
[343853694,1732975843580,-40569.56624711,0.00023,2]
[343853695,1732975843593,-7252.67901825,0.00023,2]
[343853696,1732975843605,-614.23259377,0.00023,2]
[343853703,1732975846077,-1407.85039661,0.0002285,2]
[343853704,1732975846089,-1407.85039661,0.00022875,2]
[343853705,1732975846098,-27801.5167595,0.00023,2]
[343853706,1732975852324,165.899952,0.00013973,2]
[343853707,1732975995592,450.63,0.00023729,120]
[343853714,1732976302539,-328.0,0.000265,120]
[343853715,1732976302644,-172.0,0.000265,120]
[343853716,1732976302666,-500.0,0.000265,120]
[343853717,1732976302689,-220.57435328,0.000265,120]
[343853718,1732976302783,-279.42564672,0.000265,120]
[343853719,1732976302805,-500.0,0.000265,120]
[343853720,1732976302828,-219.47435328,0.000265,120]
[343853721,1732976303093,-280.52564672,0.000265,120]
[343853722,1732976303115,-500.0,0.000265,120]
[343853723,1732976303138,-434.50743928,0.000265,120]
[343853724,1732976303267,-65.49256072,0.000265,120]
[343853725,1732976303290,-500.0,0.000265,120]
[343853726,1732976303312,-500.0,0.000265,120]
[343853727,1732976303335,-500.0,0.000265,120]
[343853728,1732976303357,-500.0,0.000265,120]
[343853729,1732976303384,-500.0,0.000265,120]
[343853730,1732976303408,-500.0,0.000265,120]
[343853731,1732976303434,-500.0,0.000265,120]
[343853732,1732976303457,-500.0,0.000265,120]
[343853733,1732976303480,-500.0,0.000265,120]
[343853734,1732976303503,-500.0,0.000265,120]
[343853735,1732976303525,-500.0,0.000265,120]
[343853736,1732976303560,-892.57435328,0.00027,120]
[343853737,1732976303591,-500.0,0.000275,120]
[343853738,1732976303612,-498.9,0.000275,120]
[343853739,1732976303660,-108.52564672,0.00029094,120]
[343853740,1732976555968,165.229625,0.00013973,2]
[343853745,1732976895682,2254.51964902,0.000265,120]
[343853800,1732977032398,-2000.0,0.000199,2]
[343853802,1732977032408,-1169.27083333,0.0002,2]
[343853804,1732977032418,-160.114495,0.00021316,2]
[343853806,1732977032427,-300.0,0.00021433,2]
[343853808,1732977032436,-1074.66442667,0.00021434,2]
[343853874,1732977043497,-23825.33557333,0.00021434,2]
[343853875,1732977043506,-171.575,0.0002254,2]
[343853876,1732977043516,-153.0,0.000226,2]
[343853877,1732977043526,-500.0,0.00022799,2]
[343853878,1732977043535,-651.37956659,0.00022799,2]
[343853879,1732977043548,-500.0,0.00022799,2]
[343853880,1732977043557,-247.69482815,0.00022799,2]
[343853881,1732977043566,-186.21716647,0.00022799,2]
[343853882,1732977043576,-496.7169906,0.00022799,2]
[343853883,1732977043585,-397.4829802,0.000228,2]
[343853884,1732977043646,-4560.20609513,0.000228,2]
[343853886,1732977043902,-3897.61571144,0.000228,2]
[343853908,1732977175455,-41.47435328,0.00029094,120]
[343853909,1732977175485,-150.0,0.00029639,120]
[343853910,1732977175513,-300.0,0.0003,120]
[343853911,1732977175535,-328.0,0.0003,120]
[343853912,1732977175709,-215.033086,0.00030137,120]
[343853913,1732977175732,-1000.0,0.00030137,120]
[343853914,1732977175760,-150.0,0.00030442,120]
[343853915,1732977348282,164.692969,0.00013973,2]
[343853958,1732977735370,215.033086,0.00030137,120]
[343853966,1732977998477,164.20998,0.00013973,2]
[343853975,1732978232623,-2161.39166127,0.0001883,2]
[343853976,1732978232633,-189.01566692,0.0001892,2]
[343853977,1732978232642,-1801.99179639,0.0001902,2]
[343853978,1732978232654,-3198.00820361,0.0001902,2]
[343853980,1732978232664,-174.05426475,0.00019306,2]
[343853982,1732978232673,-300.0,0.00019396,2]
[343853984,1732978232683,-300.0,0.00019396,2]
[343853986,1732978232692,-16579.96853164,0.00019397,2]
[343853989,1732978232705,-584.5,0.00019397,2]
[343853991,1732978232718,-3164.46299966,0.00019397,2]
[343853993,1732978232730,-3809.01563281,0.00019397,2]
[343854035,1732978238936,-762.05283589,0.00019397,2]
[343854037,1732978238946,-334.7799824,0.00019562,2]
[343854039,1732978238956,-176.625951,0.00019631,2]
[343854040,1732978238965,-773.5186232,0.00019652,2]
[343854041,1732978238975,-1169.27083333,0.0002,2]
[343854042,1732978238985,-5162.0,0.0002,2]
[343854043,1732978238994,-547.81886986,0.0002,2]
[343854044,1732978239004,-174.05426474,0.00020239,2]
[343854045,1732978239013,-500.0,0.00020338,2]
[343854046,1732978239024,-7703.2077449,0.00020339,2]
[343854047,1732978239033,-250.0,0.00020601,2]
[343854048,1732978239042,-187.467403,0.00020899,2]
[343854049,1732978239052,-420.0,0.00021133,2]
[343854050,1732978239065,-420.0,0.00021335,2]
[343854051,1732978239074,-621.01422024,0.00022113,2]
[343854052,1732978239084,-60280.11334736,0.0002222,2]
[343854075,1732978244029,-7416.73983182,0.0002222,2]
[343854078,1732978244115,-12600.47687472,0.0002222,2]
[343854079,1732978244127,-362767.0624781,0.0002222,2]
[343854080,1732978244137,-187.467403,0.00022462,2]
[343854081,1732978244147,-8169.30403639,0.000228,2]
[343854082,1732978244157,-281.57007933,0.000228,2]
[343854083,1732978244167,-281.57007932,0.00022825,2]
[343854085,1732978244176,-281.57007932,0.0002285,2]
[343854087,1732978244185,-281.57007932,0.00022875,2]
[343854088,1732978244194,-171.576,0.00022893,2]
[343854090,1732978244204,-134367.27632961,0.000229,2]
[343854092,1732978244213,-1882.38365514,0.000229,2]
[343854093,1732978244222,-281.57007932,0.000229,2]
[343854094,1732978244232,-310.00339292,0.00022932,2]
[343854095,1732978244241,-500.0,0.00022973,2]
[343854096,1732978244251,-501.11108221,0.00022973,2]
[343854097,1732978244261,-500.0,0.00022973,2]
[343854098,1732978244271,-500.0,0.00022973,2]
[343854099,1732978244281,-150.01,0.00022999,2]
[343854100,1732978244290,-1546.29466096,0.00022999,2]
[343854101,1732978244300,-1284477.23204715,0.00023,2]
[343854102,1732978244310,-1499.999999,0.00023,2]
[343854103,1732978244320,-151.0,0.00023,10]
[343854104,1732978244330,-151.0,0.00023,8]
[343854105,1732978244339,-151.0,0.00023,8]
[343854106,1732978244348,-151.0,0.00023,8]
[343854107,1732978244358,-151.0,0.00023,5]
[343854108,1732978244369,-151.0,0.00023,10]
[343854109,1732978244378,-151.0,0.00023,6]
[343854110,1732978244388,-151.0,0.00023,10]
[343854111,1732978244398,-151.0,0.00023,5]
[343854112,1732978244407,-151.0,0.00023,10]
[343854113,1732978244417,-151.0,0.00023,6]
[343854114,1732978244427,-151.0,0.00023,7]
[343854115,1732978244436,-151.0,0.00023,8]
[343854116,1732978244446,-151.0,0.00023,7]
[343854117,1732978244456,-240.137909,0.00023,5]
[343854118,1732978244466,-151.0,0.00023,8]
[343854119,1732978244483,-301.112237,0.00023,5]
[343854120,1732978244494,-587.0,0.00023026,2]
[343854121,1732978244503,-500.0,0.00023277,2]
[343854122,1732978244513,-587.0,0.00023469,2]
[343854123,1732978244522,-21442.77,0.000235,2]
[343854124,1732978244531,-1000.0,0.00023521,2]
[343854125,1732978244540,-502.24549035,0.00023521,2]
[343854126,1732978244550,-1000.0,0.00023521,2]
[343854127,1732978244559,-164.212992,0.00023562,2]
[343854128,1732978244569,-617.0,0.000236,2]
[343854129,1732978244578,-1882.38365506,0.00023733,2]
[343854130,1732978244588,-218.0,0.0002383,10]
[343854131,1732978244598,-212.1357018,0.00023945,2]
[343854132,1732978244607,-1000.0,0.00024,2]
[343854133,1732978244617,-550.35562802,0.00024,5]
[343854134,1732978244627,-475.4344,0.00024021,15]
[343854135,1732978244636,-310.00016965,0.00024079,2]
[343854136,1732978244646,-500.0,0.0002444,2]
[343854137,1732978244656,-1500.0,0.00024522,2]
[343854138,1732978244665,-331.45155007,0.00024522,2]
[343854139,1732978244675,-9405.50660729,0.00024557,7]
[343854140,1732978244684,-161.814609,0.00024557,7]
[343854141,1732978244694,-151.0,0.00024557,7]
[343854142,1732978244703,-151.0,0.00024563,7]
[343854143,1732978244713,-1882.38365506,0.00024565,2]
[343854144,1732978244722,-163.49,0.000246,2]
[343854145,1732978244733,-151.0,0.000246,7]
[343854146,1732978244743,-151.0,0.000246,7]
[343854147,1732978244752,-151.0,0.000246,7]
[343854148,1732978244763,-153.245058,0.000246,7]
[343854149,1732978244773,-1465.5,0.000246,2]
[343854150,1732978244782,-151.0,0.00024657,7]
[343854151,1732978244792,-151.0,0.00024657,7]
[343854152,1732978244802,-151.0,0.00024657,7]
[343854153,1732978244811,-151.0,0.00024657,7]
[343854154,1732978244821,-151.0,0.00024657,7]
[343854155,1732978244830,-151.0,0.00024657,7]
[343854156,1732978244840,-151.0,0.00024657,7]
[343854157,1732978244849,-151.0,0.00024657,7]
[343854158,1732978244859,-151.0,0.00024657,7]
[343854159,1732978244872,-151.0,0.00024657,7]
[343854160,1732978244882,-152.89351,0.00024657,7]
[343854161,1732978244892,-168.697214,0.00024657,7]
[343854162,1732978244903,-168.697214,0.00024657,7]
[343854163,1732978244918,-168.697214,0.00024657,7]
[343854164,1732978244928,-168.697214,0.00024657,7]
[343854165,1732978244938,-168.697214,0.00024657,7]
[343854166,1732978244948,-168.697214,0.00024657,7]
[343854167,1732978244958,-151.0,0.00024657,7]
[343854168,1732978244969,-151.0,0.00024657,7]
[343854169,1732978244977,-151.0,0.00024657,7]
[343854170,1732978244987,-1169.27083333,0.00024657,3]
[343854171,1732978244996,-1169.27083333,0.00024657,3]
[343854172,1732978245006,-1169.27083333,0.00024657,3]
[343854173,1732978245016,-500.0,0.00024657,3]
[343854174,1732978245027,-515.40934308,0.00024657,3]
[343854175,1732978245036,-500.0,0.00024657,3]
[343854176,1732978245046,-500.0,0.00024657,3]
[343854177,1732978245059,-500.0,0.00024657,3]
[343854178,1732978245068,-501.32321859,0.00024657,3]
[343854179,1732978245078,-500.0,0.00024657,3]
[343854180,1732978245088,-500.0,0.00024657,3]
[343854181,1732978245208,-500.0,0.00024657,3]
[343854182,1732978245218,-151.0,0.00024657,7]
[343854183,1732978245228,-292.387826,0.00024657,7]
[343854184,1732978245237,-556.71,0.00024657,3]
[343854185,1732978245247,-500.0,0.00024657,3]
[343854186,1732978245257,-500.0,0.00024657,3]
[343854187,1732978245267,-550.70970571,0.00024657,3]
[343854188,1732978245277,-500.0,0.00024657,3]
[343854189,1732978245287,-204.299239,0.00024657,7]
[343854190,1732978245296,-204.299239,0.00024657,7]
[343854191,1732978245306,-204.299239,0.00024657,7]
[343854192,1732978245322,-500.0,0.00024657,3]
[343854193,1732978245334,-204.299239,0.00024657,7]
[343854194,1732978245344,-204.299239,0.00024657,7]
[343854195,1732978245354,-204.299239,0.00024657,7]
[343854196,1732978245367,-711.92,0.00024657,3]
[343854197,1732978245376,-500.0,0.00024657,3]
[343854198,1732978245386,-500.0,0.00024657,3]
[343854199,1732978245396,-500.0,0.00024657,3]
[343854200,1732978245406,-500.0,0.00024657,3]
[343854201,1732978245415,-500.0,0.00024657,3]
[343854202,1732978245425,-389.89839887,0.00024657,3]
[343854203,1732978245435,-500.0,0.00024657,3]
[343854204,1732978245444,-500.0,0.00024657,3]
[343854205,1732978245454,-604.49411708,0.00024657,3]
[343854206,1732978245464,-500.0,0.00024657,3]
[343854207,1732978245474,-500.0,0.00024657,3]
[343854208,1732978245484,-503.48662501,0.00024657,3]
[343854209,1732978245494,-500.0,0.00024657,3]
[343854210,1732978245504,-501.72946685,0.00024657,3]
[343854211,1732978245514,-505.22372969,0.00024657,3]
[343854212,1732978245524,-500.0,0.00024657,3]
[343854213,1732978245534,-500.0,0.00024657,3]
[343854214,1732978245544,-501.89890158,0.00024657,3]
[343854215,1732978245553,-500.0,0.00024657,3]
[343854216,1732978245563,-500.0,0.00024657,3]
[343854217,1732978245572,-500.0,0.00024657,3]
[343854218,1732978245583,-508.55187045,0.00024657,3]
[343854219,1732978245593,-501.64592969,0.00024657,3]
[343854220,1732978245603,-503.31267002,0.00024657,2]
[343854221,1732978245612,-501.3806732,0.00024657,3]
[343854222,1732978245624,-500.0,0.00024657,3]
[343854223,1732978245634,-200.0,0.00024657,3]
[343854224,1732978245644,-151.0,0.00024657,7]
[343854225,1732978245654,-500.0,0.00024657,3]
[343854226,1732978245664,-500.65648645,0.00024657,3]
[343854227,1732978245674,-500.0,0.00024657,3]
[343854228,1732978245684,-500.0,0.00024657,3]
[343854229,1732978245693,-500.0,0.00024657,3]
[343854230,1732978245703,-500.0,0.00024657,3]
[343854231,1732978245712,-500.0,0.00024657,3]
[343854232,1732978245723,-500.0,0.00024657,3]
[343854233,1732978245734,-500.0,0.00024657,3]
[343854234,1732978245743,-500.0,0.00024657,3]
[343854235,1732978245754,-414.22997312,0.00024657,2]
[343854236,1732978245764,-500.0,0.00024657,3]
[343854237,1732978245773,-578.05048284,0.00024657,3]
[343854238,1732978245784,-755.26,0.00024657,3]
[343854239,1732978245794,-500.0,0.00024657,3]
[343854240,1732978245804,-502.4611511,0.00024657,3]
[343854241,1732978245816,-500.0,0.00024657,3]
[343854242,1732978245826,-500.0,0.00024657,3]
[343854243,1732978245837,-500.0,0.00024657,3]
[343854244,1732978245846,-500.50344062,0.00024657,3]
[343854245,1732978245856,-500.0,0.00024657,3]
[343854246,1732978245867,-481.37262377,0.00024657,3]
[343854247,1732978245877,-500.0,0.00024657,3]
[343854248,1732978245887,-504.38852795,0.00024657,3]
[343854249,1732978245896,-500.0,0.00024657,3]
[343854250,1732978245906,-500.0,0.00024657,3]
[343854251,1732978245916,-500.0,0.00024657,3]
[343854252,1732978245926,-500.0,0.00024657,3]
[343854254,1732978245936,-500.0,0.00024657,3]
[343854256,1732978245946,-500.0,0.00024657,3]
[343854258,1732978245956,-500.0,0.00024657,3]
[343854259,1732978245966,-500.0,0.00024657,3]
[343854261,1732978245976,-500.0,0.00024657,3]
[343854262,1732978245986,-500.0,0.00024657,3]
[343854263,1732978245996,-500.0,0.00024657,3]
[343854264,1732978246006,-500.0,0.00024657,3]
[343854265,1732978246015,-500.0,0.00024657,3]
[343854266,1732978246025,-583.8192949,0.00024657,3]
[343854267,1732978246035,-500.0,0.00024657,3]
[343854268,1732978246045,-500.0,0.00024657,3]
[343854269,1732978246059,-500.0,0.00024657,3]
[343854270,1732978246067,-711.86,0.00024657,3]
[343854271,1732978246076,-500.0,0.00024657,3]
[343854272,1732978246086,-500.0,0.00024657,3]
[343854273,1732978246098,-500.0,0.00024657,3]
[343854274,1732978246107,-500.0,0.00024657,3]
[343854275,1732978246118,-500.0,0.00024657,3]
[343854276,1732978246127,-500.0,0.00024657,3]
[343854277,1732978246136,-500.0,0.00024657,3]
[343854278,1732978246147,-500.0,0.00024657,3]
[343854279,1732978246157,-500.0,0.00024657,3]
[343854280,1732978246167,-500.0,0.00024657,3]
[343854281,1732978246177,-151.0,0.00024657,7]
[343854282,1732978246187,-151.0,0.00024657,7]
[343854283,1732978246196,-500.0,0.00024657,3]
[343854284,1732978246206,-500.0,0.00024657,3]
[343854285,1732978246215,-500.0,0.00024657,3]
[343854286,1732978246225,-500.0,0.00024657,3]
[343854287,1732978246234,-500.0,0.00024657,3]
[343854288,1732978246244,-500.0,0.00024657,3]
[343854289,1732978246253,-599.84601016,0.00024657,3]
[343854290,1732978246262,-500.0,0.00024657,3]
[343854291,1732978246272,-500.0,0.00024657,3]
[343854292,1732978246282,-500.0,0.00024657,3]
[343854293,1732978246291,-874.23,0.00024657,3]
[343854294,1732978246301,-151.0,0.00024657,7]
[343854295,1732978246310,-151.0,0.00024657,7]
[343854296,1732978246319,-500.0,0.00024657,3]
[343854297,1732978246329,-500.0,0.00024657,3]
[343854298,1732978246339,-151.0,0.00024657,7]
[343854299,1732978246348,-151.0,0.00024657,7]
[343854300,1732978246358,-500.0,0.00024657,3]
[343854301,1732978246369,-500.0,0.00024657,3]
[343854302,1732978246383,-500.0,0.00024657,3]
[343854303,1732978246393,-500.00071037,0.00024657,3]
[343854304,1732978246403,-218.53621841,0.00024657,3]
[343854305,1732978246412,-500.0,0.00024657,3]
[343854306,1732978246421,-500.0,0.00024657,3]
[343854307,1732978246432,-870.24,0.00024657,3]
[343854308,1732978246441,-505.30182433,0.00024657,3]
[343854309,1732978246451,-500.0,0.00024657,3]
[343854310,1732978246460,-629.08438614,0.00024657,3]
[343854311,1732978246470,-795.2,0.00024657,3]
[343854312,1732978246479,-551.46657552,0.00024657,3]
[343854313,1732978246489,-503.67139598,0.00024657,3]
[343854314,1732978246499,-500.0,0.00024657,3]
[343854315,1732978246508,-3086.24,0.00024657,3]
[343854316,1732978246518,-500.0,0.00024657,3]
[343854317,1732978246527,-500.0,0.00024657,3]
[343854318,1732978246537,-503.6188387,0.00024657,3]
[343854319,1732978246546,-500.0,0.00024657,3]
[343854320,1732978246556,-500.0,0.00024657,3]
[343854321,1732978246565,-500.0,0.00024657,3]
[343854322,1732978246574,-699.85,0.00024657,3]
[343854323,1732978246584,-341.90628674,0.00024657,3]
[343854324,1732978246593,-500.0,0.00024657,3]
[343854325,1732978246602,-500.0,0.00024657,3]
[343854326,1732978246611,-1136.5,0.00024657,3]
[343854327,1732978246623,-500.0,0.00024657,3]
[343854328,1732978246633,-500.0,0.00024657,3]
[343854329,1732978246641,-500.0,0.00024657,3]
[343854330,1732978246650,-500.0,0.00024657,3]
[343854331,1732978246660,-500.0,0.00024657,3]
[343854332,1732978246670,-500.0,0.00024657,3]
[343854333,1732978246679,-884.14,0.00024657,3]
[343854334,1732978246689,-500.0,0.00024657,3]
[343854335,1732978246698,-500.0,0.00024657,3]
[343854336,1732978246708,-500.0,0.00024657,3]
[343854337,1732978246717,-500.0,0.00024657,3]
[343854338,1732978246727,-500.0,0.00024657,3]
[343854339,1732978246736,-500.0,0.00024657,3]
[343854340,1732978246745,-500.0,0.00024657,3]
[343854341,1732978246755,-534.25,0.00024657,3]
[343854342,1732978246765,-500.0,0.00024657,3]
[343854343,1732978246774,-500.0,0.00024657,3]
[343854344,1732978246784,-500.0,0.00024657,3]
[343854345,1732978246794,-500.0,0.00024657,3]
[343854346,1732978246804,-500.0,0.00024657,3]
[343854347,1732978246813,-500.0,0.00024657,3]
[343854348,1732978246823,-500.0,0.00024657,3]
[343854349,1732978246832,-246.52728722,0.00024657,3]
[343854350,1732978246841,-612.71,0.00024657,3]
[343854351,1732978246850,-500.0,0.00024657,3]
[343854352,1732978246861,-616.97795439,0.00024657,3]
[343854353,1732978246874,-175.93035396,0.00024657,3]
[343854354,1732978246884,-334.16313767,0.00024657,3]
[343854355,1732978246894,-500.0,0.00024657,3]
[343854356,1732978246904,-505.67869371,0.00024657,3]
[343854357,1732978246914,-500.0,0.00024657,3]
[343854358,1732978246923,-500.0,0.00024657,3]
[343854359,1732978246933,-500.0,0.00024657,3]
[343854360,1732978246942,-500.0,0.00024657,3]
[343854361,1732978246952,-500.0,0.00024657,3]
[343854362,1732978246962,-819.07,0.00024657,3]
[343854363,1732978246971,-500.0,0.00024657,3]
[343854364,1732978246981,-500.0,0.00024657,3]
[343854365,1732978246991,-500.0,0.00024657,3]
[343854366,1732978247001,-500.0,0.00024657,3]
[343854367,1732978247010,-500.0,0.00024657,3]
[343854368,1732978247020,-322.99067323,0.00024657,3]
[343854369,1732978247030,-642.87,0.00024657,3]
[343854370,1732978247039,-500.0,0.00024657,3]
[343854371,1732978247050,-508.15655522,0.00024657,3]
[343854372,1732978247065,-500.0,0.00024657,3]
[343854373,1732978247074,-500.0,0.00024657,3]
[343854374,1732978247084,-959.64,0.00024657,3]
[343854375,1732978247094,-500.0,0.00024657,3]
[343854376,1732978247104,-500.00000075,0.00024657,3]
[343854377,1732978247114,-526.50838463,0.00024657,3]
[343854378,1732978247128,-412.34486148,0.00024657,3]
[343854379,1732978247138,-500.0,0.00024657,3]
[343854380,1732978247148,-500.0,0.00024657,3]
[343854381,1732978247157,-500.0,0.00024657,3]
[343854382,1732978247166,-500.0,0.00024657,3]
[343854383,1732978247175,-500.0,0.00024657,3]
[343854384,1732978247184,-500.0,0.00024657,3]
[343854385,1732978247195,-515.45030047,0.00024657,3]
[343854386,1732978247204,-500.0,0.00024657,3]
[343854387,1732978247214,-500.0,0.00024657,3]
[343854388,1732978247223,-380.70223758,0.00024657,3]
[343854389,1732978247233,-500.0,0.00024657,3]
[343854390,1732978247243,-500.0,0.00024657,3]
[343854391,1732978247252,-500.0,0.00024657,3]
[343854392,1732978247262,-182.248729,0.00024657,7]
[343854393,1732978247271,-259.67242404,0.00024657,3]
[343854394,1732978247281,-500.0,0.00024657,3]